bitfinex-derivatives/quotes_BTCF0:USTF0_20241120
["timestamp","ask_amount","ask_price","bid_price","bid_amount"]
[1732133945734,0.002,94014.0,94013.0,0.15449782]
[1732133946313,0.002,94014.0,94013.0,0.4682955]
[1732133946622,0.01258634,94014.0,94013.0,0.1168]
[1732133947108,0.01258634,94014.0,94013.0,0.053133]
[1732133947109,0.05768634,94014.0,94013.0,0.053133]
[1732133947309,0.05768634,94014.0,94013.0,0.15449782]
[1732133947310,0.002,94014.0,94013.0,0.15449782]
[1732133947509,0.002,94014.0,94013.0,0.27129782]
[1732133950129,0.002,94014.0,94013.0,0.63209782]
[1732133950327,0.002,94014.0,94013.0,1.00989119]
[1732133950711,0.002,94014.0,94013.0,0.63209782]
[1732133950917,0.002,94014.0,94013.0,0.65334787]
[1732133951427,0.002,94014.0,94013.0,1.03114124]
[1732133951624,0.002,94014.0,94013.0,0.65334787]
[1732133952332,0.00592429,94027.0,94013.0,0.65334787]
[1732133952333,0.00177419,94040.0,94029.0,0.053124]
[1732133952623,0.16523064,94046.0,94041.0,0.15448182]
[1732133952624,0.01385549,94042.0,94041.0,0.15448182]
[1732133952817,0.01385549,94042.0,94041.0,1.77128182]
[1732133953626,0.01385549,94042.0,94041.0,1.65448182]
[1732133953831,0.01385549,94042.0,94041.0,1.77128182]
[1732133954525,0.00633295,94046.0,94041.0,1.81952964]
[1732133954720,0.00633295,94046.0,94045.0,0.053115]
[1732133955428,0.00633295,94046.0,94045.0,0.413915]
[1732133956126,0.00733295,94046.0,94045.0,0.530675]
[1732133956819,0.00833295,94046.0,94045.0,0.530675]
[1732133957226,0.00833295,94046.0,94045.0,0.63203982]
[1732133957521,0.00833295,94046.0,94045.0,0.530675]
[1732133957828,0.00647,94059.0,94045.0,0.91388482]
[1732133958031,0.00698717,94065.0,94059.0,0.053107]
[1732133958330,0.00772406,94069.0,94067.0,0.053103]
[1732133958518,0.00772406,94069.0,94068.0,1.5]
[1732133960123,0.00772406,94069.0,94068.0,1.52109182]
[1732133960726,0.00872406,94069.0,94068.0,1.52109182]
[1732133963016,0.00872406,94069.0,94068.0,1.63785182]
[1732133963622,0.3608,94094.0,94068.0,1.63785182]
[1732133963827,0.3608,94094.0,94087.0,0.053091]
[1732133964140,0.3608,94094.0,94088.0,0.11672]
[1732133965026,0.3608,94094.0,94088.0,0.13717671]
[1732133965736,0.0494,94089.0,94088.0,0.13717671]
[1732133966134,0.0504,94089.0,94088.0,0.13717671]
[1732133968134,0.05094513,94089.0,94088.0,0.13717671]
[1732133969229,0.05094513,94089.0,94088.0,0.11672]
[1732133972337,0.05094513,94089.0,94087.0,0.053091]
[1732133973634,0.04994513,94089.0,94087.0,0.053091]
[1732133973836,0.05094513,94089.0,94087.0,0.053091]
[1732133975338,0.05094513,94089.0,94074.0,0.11384]
[1732133975532,0.3608,94077.0,94074.0,0.11384]
[1732133976342,0.3608,94077.0,94076.0,0.053098]
[1732133976541,0.05094513,94089.0,94076.0,0.11384]
[1732133976743,0.00254513,94089.0,94088.0,0.15445582]
[1732133976939,0.00154513,94089.0,94088.0,0.26829582]
[1732133977335,0.00054513,94089.0,94088.0,0.26829582]
[1732133977838,0.00054513,94089.0,94088.0,1.553091]
[1732133978037,0.00054513,94089.0,94088.0,1.666931]
[1732133978360,0.00054513,94089.0,94088.0,0.053091]
[1732133979244,0.00054513,94089.0,94088.0,0.07896441]
[1732133979547,0.00254513,94089.0,94088.0,0.07896441]
[1732133980333,0.00254513,94089.0,94088.0,0.053091]
[1732133981032,0.3321027,94089.0,94081.0,0.053094]
[1732133981231,0.3608,94082.0,94075.0,0.1144]
[1732133981449,0.1425,94081.0,94068.0,0.00159461]
[1732133981645,0.053096,94078.0,94077.0,0.053097]
[1732133981949,0.1425,94081.0,94068.0,0.10295943]
[1732133982147,0.1425,94081.0,94080.0,0.053095]
[1732133982354,0.15327173,94081.0,94080.0,0.053095]
[1732133982529,0.10737173,94081.0,94080.0,0.053095]
[1732133983629,0.10837173,94081.0,94080.0,0.053095]
[1732133984641,0.12563531,94081.0,94080.0,0.053095]
[1732133984847,0.12663531,94081.0,94080.0,0.053095]
[1732133985445,0.12661268,94081.0,94080.0,0.053095]
[1732133986045,0.12661268,94081.0,94080.0,0.07939092]
[1732133986651,0.03001268,94081.0,94080.0,0.07939092]
[1732133987449,0.08162276,94081.0,94080.0,0.07939092]
[1732133987643,0.03001268,94081.0,94080.0,0.07939092]
[1732133988548,0.18902555,94081.0,94080.0,0.07939092]
[1732133989953,0.03001268,94081.0,94080.0,0.07939092]
[1732133990135,0.15901287,94086.0,94085.0,0.053092]
[1732133990335,0.15901287,94090.0,94088.0,0.053091]
[1732133990540,0.15901287,94090.0,94088.0,0.15445582]
[1732133990738,0.159558,94089.0,94088.0,0.15445582]
[1732133990940,0.00054513,94089.0,94088.0,0.15445582]
[1732133991153,0.159552,94089.0,94088.0,0.15445582]
[1732133991443,0.05215251,94089.0,94088.0,0.15445582]
[1732133991642,0.00054513,94089.0,94088.0,0.15445582]
[1732133991843,0.15955408,94089.0,94088.0,0.15445582]
[1732133992052,0.00054513,94089.0,94088.0,0.15445582]
[1732133994852,0.00054513,94089.0,94088.0,0.166931]
[1732133995051,0.00054513,94089.0,94088.0,0.053091]
[1732133997645,0.00054513,94089.0,94084.0,0.3608]
[1732133997835,0.00054513,94089.0,94084.0,0.413893]
[1732133998038,0.00054513,94089.0,94084.0,0.3608]
[1732133998333,0.00054513,94089.0,94080.0,0.02629592]
[1732133998334,0.3608,94085.0,94081.0,0.053095]
[1732133999151,0.4093,94085.0,94080.0,0.02629592]
[1732133999352,0.4093,94085.0,94083.0,0.053093]
[1732133999554,0.4093,94085.0,94084.0,0.053093]
[1732133999848,0.37778463,94085.0,94084.0,0.053093]
[1732134000552,0.3608,94085.0,94084.0,0.053093]
[1732134002343,0.053095,94081.0,94079.0,0.053096]
[1732134002541,0.05626244,94080.0,94079.0,0.053096]
[1732134003148,0.0458,94080.0,94079.0,0.053096]
[1732134003654,0.39454,94084.0,94083.0,0.053094]
[1732134003850,0.3937,94084.0,94083.0,0.053094]
[1732134006152,0.3608,94085.0,94084.0,0.053093]
[1732134006870,0.3608,94085.0,94075.0,0.02618874]
[1732134006871,0.67968,94085.0,94075.0,0.02618874]
[1732134007052,0.053095,94081.0,94068.0,0.00159461]
[1732134007349,0.053095,94080.0,94079.0,0.053096]
[1732134007544,0.3608,94085.0,94071.0,0.13572346]
[1732134007743,0.06327561,94084.0,94071.0,0.13572346]
[1732134007952,0.053093,94084.0,94083.0,0.053094]
[1732134008148,0.06327561,94084.0,94083.0,0.053094]
[1732134008342,0.38215561,94084.0,94083.0,0.053094]
[1732134008541,0.371973,94084.0,94083.0,0.053094]
[1732134009153,0.446793,94084.0,94083.0,0.053094]
[1732134009350,0.765673,94084.0,94083.0,0.053094]
[1732134009651,0.053096,94079.0,94078.0,0.053096]
[1732134009851,0.446796,94079.0,94078.0,0.053096]
[1732134011154,0.3937,94079.0,94078.0,0.053096]
[1732134011351,0.40382068,94079.0,94078.0,0.053096]
[1732134011554,0.3937,94079.0,94078.0,0.053096]
[1732134015160,0.3608,94082.0,94081.0,0.053095]
[1732134016364,0.3608,94082.0,94077.0,0.10948]
[1732134016551,0.0446,94081.0,94077.0,0.053097]
[1732134017157,0.0446,94081.0,94080.0,0.053095]
[1732134017358,0.05472478,94081.0,94080.0,0.053095]
[1732134017555,0.3608,94082.0,94074.0,0.46216482]
[1732134017760,0.3608,94082.0,94081.0,0.053095]
[1732134017950,0.37089333,94082.0,94081.0,0.053095]
[1732134018763,0.37089333,94082.0,94081.0,0.15445982]
[1732134018957,0.3608,94082.0,94081.0,0.15445982]
[1732134020078,0.39450001,94088.0,94081.0,0.15445982]
[1732134020079,0.00080001,94088.0,94087.0,0.053091]
[1732134020370,0.00054513,94089.0,94088.0,0.053091]
[1732134020549,0.00054513,94089.0,94088.0,0.15445582]
[1732134020760,0.00054513,94089.0,94088.0,0.26393582]
[1732134021558,0.39450001,94093.0,94092.0,0.053089]
[1732134021559,0.00080001,94093.0,94092.0,0.053089]
[1732134021753,0.1,94100.0,94092.0,0.053089]
[1732134021959,0.1,94100.0,94099.0,0.51524982]
[1732134024357,0.1,94100.0,94099.0,0.54073122]
[1732134024670,0.09906085,94100.0,94099.0,0.54073122]
[1732134026169,0.14906085,94100.0,94099.0,0.54073122]
[1732134027977,0.14906085,94100.0,94099.0,0.64209604]
[1732134028274,0.0099,94114.0,94113.0,0.053077]
[1732134028474,0.3937,94123.0,94113.0,0.523317]
[1732134028773,0.39458001,94123.0,94113.0,0.523317]
[1732134029078,0.39458001,94123.0,94113.0,0.10944]
[1732134029276,0.39458001,94123.0,94115.0,0.10136482]
[1732134031571,0.39458001,94123.0,94114.0,0.053076]
[1732134032167,0.39458001,94123.0,94115.0,0.053075]
[1732134032975,0.39458001,94123.0,94113.0,0.1354724]
[1732134033182,0.7545,94122.0,94113.0,0.0260324]
[1732134033481,0.053074,94118.0,94111.0,0.1094]
[1732134033773,0.3608,94112.0,94104.0,0.053081]
[1732134033978,0.10136482,94113.0,94104.0,0.053081]
[1732134033979,0.3608,94105.0,94104.0,0.053081]
[1732134035176,0.3608,94105.0,94103.0,0.02578783]
[1732134035376,0.7978,94104.0,94091.0,0.3608]
[1732134035563,0.3608,94096.0,94090.0,0.02627444]
[1732134035769,0.3608,94096.0,94087.0,1.6094]
[1732134035770,0.053089,94092.0,94087.0,1.6094]
[1732134036068,0.3608,94096.0,94087.0,1.5]
[1732134036069,0.3937,94091.0,94087.0,1.5]
[1732134036276,0.4403,94091.0,94087.0,0.02589854]
[1732134036461,0.4403,94091.0,94089.0,0.05309]
[1732134038470,0.4403,94091.0,94084.0,0.053093]
[1732134038671,0.053093,94085.0,94083.0,0.13578]
[1732134038877,0.0444,94084.0,94083.0,0.13578]
[1732134039072,0.0903,94084.0,94083.0,0.13578]
[1732134040176,0.0444,94084.0,94083.0,0.13578]
[1732134040379,0.0444,94084.0,94083.0,0.02638]
[1732134040579,0.0444,94084.0,94082.0,0.053094]
[1732134041377,0.0444,94084.0,94082.0,0.07887072]
[1732134043177,0.0444,94084.0,94083.0,0.053094]
[1732134046173,0.39450001,94087.0,94086.0,0.053092]
[1732134046379,0.3937,94087.0,94086.0,0.053092]
[1732134048173,0.3608,94088.0,94087.0,0.053091]
[1732134048577,0.67964,94088.0,94087.0,0.053091]
[1732134049285,0.3608,94088.0,94087.0,0.053091]
[1732134053184,0.001,94088.0,94087.0,0.053091]
[1732134053689,0.001,94088.0,94086.0,0.053092]
[1732134053881,0.001,94088.0,94087.0,0.053091]
[1732134054086,0.001,94088.0,94087.0,1.553091]
[1732134060880,0.001,94088.0,94087.0,1.5743214]
[1732134061090,0.00041,94111.0,94105.0,0.053081]
[1732134061284,0.00041,94111.0,94105.0,0.57156482]
[1732134061501,0.00041,94111.0,94110.0,0.053078]
[1732134061992,0.00159408,94121.0,94120.0,0.053073]
[1732134062499,0.39458001,94122.0,94120.0,0.053073]
[1732134062698,0.39458001,94122.0,94110.0,0.053078]
[1732134062699,0.053073,94119.0,94110.0,0.053078]
[1732134062902,0.053074,94118.0,94110.0,0.053078]
[1732134063286,0.10136482,94111.0,94105.0,0.3608]
[1732134063591,0.10136482,94111.0,94099.0,0.3608]
[1732134063592,0.0903,94110.0,94102.0,0.10924]
[1732134064191,0.0903,94110.0,94105.0,0.053081]
[1732134064390,0.0903,94110.0,94102.0,0.10924]
[1732134064585,0.0903,94110.0,94108.0,0.053079]
[1732134064793,0.0903,94110.0,94102.0,0.10924]
[1732134064993,0.0903,94110.0,94109.0,0.053079]
[1732134065392,0.40906,94110.0,94109.0,0.053079]
[1732134066096,0.462138,94110.0,94109.0,0.053079]
[1732134066400,0.053079,94109.0,94100.0,0.053084]
[1732134066601,0.15444682,94103.0,94102.0,0.053082]
[1732134066785,0.15444682,94103.0,94092.0,0.0260242]
[1732134066786,0.053087,94097.0,94096.0,0.053086]
[1732134066991,0.90895182,94097.0,94096.0,0.053086]
[1732134069188,0.7545,94097.0,94096.0,0.053086]
[1732134070399,0.7545,94097.0,94092.0,0.0260242]
[1732134070400,1.17470482,94097.0,94092.0,0.0260242]
[1732134070701,0.053088,94093.0,94092.0,0.053087]
[1732134072200,0.446788,94093.0,94092.0,0.053087]
[1732134072595,0.3937,94093.0,94086.0,0.0015943]
[1732134072799,0.413891,94089.0,94086.0,0.0015943]
[1732134072992,0.053091,94087.0,94086.0,0.02607457]
[1732134073191,0.39450001,94088.0,94087.0,0.053091]
[1732134073396,0.3937,94088.0,94087.0,0.053091]
[1732134077003,0.3937,94088.0,94087.0,0.413891]
[1732134078099,0.3937,94088.0,94085.0,0.10928]
[1732134078299,0.3608,94090.0,94088.0,0.05309]
[1732134078809,0.3608,94090.0,94089.0,0.05309]
[1732134079308,0.41389,94090.0,94085.0,0.10928]
[1732134079516,0.053091,94088.0,94086.0,0.053092]
[1732134079812,0.0432,94089.0,94088.0,0.053091]
[1732134081013,0.0432,94089.0,94077.0,1.65510182]
[1732134081014,0.0432,94089.0,94077.0,1.50064]
[1732134081202,0.0432,94089.0,94083.0,0.053093]
[1732134081203,0.053093,94084.0,94083.0,0.053093]
[1732134081603,0.053093,94084.0,94077.0,0.02641946]
[1732134081604,0.49506482,94084.0,94077.0,0.02641946]
[1732134081812,0.053101,94072.0,94071.0,0.0531]
[1732134082009,0.446801,94072.0,94071.0,0.0531]
[1732134082808,0.3937,94072.0,94071.0,0.0531]
[1732134084002,0.3608,94081.0,94080.0,0.053095]
[1732134085908,0.3937,94088.0,94087.0,0.053091]
[1732134090206,0.4369,94089.0,94084.0,0.02614692]
[1732134090411,0.4369,94089.0,94076.0,0.053098]
[1732134090412,0.4369,94089.0,94088.0,0.053091]
[1732134091312,0.75574,94089.0,94076.0,0.02580111]
[1732134091615,0.053097,94082.0,94081.0,0.053095]
[1732134092316,0.3608,94083.0,94082.0,0.053094]
[1732134093918,0.3608,94083.0,94069.0,0.3608]
[1732134094117,0.0436,94082.0,94069.0,0.3608]
[1732134094511,0.3608,94083.0,94070.0,0.10136482]
[1732134094712,0.3608,94083.0,94082.0,0.053094]
[1732134096319,0.7545,94083.0,94082.0,0.053094]
[1732134096719,0.807594,94083.0,94082.0,0.053094]
[1732134098439,0.807594,94083.0,94069.0,0.43983091]
[1732134098440,0.053099,94074.0,94070.0,0.053101]
[1732134098638,0.053099,94074.0,94069.0,0.02592991]
[1732134098639,0.413899,94074.0,94073.0,0.053099]
[1732134099737,0.51526382,94074.0,94073.0,0.053099]
[1732134100441,0.67968,94074.0,94060.0,0.25221688]
[1732134100641,0.15446682,94070.0,94069.0,0.053101]
[1732134101747,0.10136482,94070.0,94069.0,0.053101]
[1732134102241,0.49506482,94070.0,94069.0,0.053101]
[1732134102544,0.3937,94070.0,94069.0,0.053101]
[1732134104543,0.053101,94070.0,94069.0,0.053101]
[1732134107530,0.053106,94061.0,94060.0,9.909e-05]
[1732134107730,0.90897082,94061.0,94060.0,9.909e-05]
[1732134107930,0.053116,94053.0,94052.0,0.00159482]
[1732134108132,0.053116,94053.0,94044.0,0.33002051]
[1732134108133,0.05312,94045.0,94044.0,0.33002051]
[1732134108438,0.05312,94045.0,94044.0,0.30472]
[1732134108439,0.51528482,94045.0,94044.0,0.30472]
[1732134108645,0.053127,94033.0,94027.0,0.07156055]
[1732134108860,0.3937,94032.0,94031.0,0.053128]
[1732134109143,0.7545,94032.0,94031.0,0.053128]
[1732134110036,0.85586482,94032.0,94031.0,0.053128]
[1732134110632,0.7545,94032.0,94031.0,0.053128]
[1732134111243,0.3608,94032.0,94031.0,0.053128]
[1732134111544,0.00088001,94044.0,94043.0,0.053121]
[1732134111735,0.00159575,94051.0,94035.0,0.053126]
[1732134111736,0.05471275,94051.0,94050.0,0.053118]
[1732134112041,0.053121,94045.0,94042.0,0.053122]
[1732134112247,0.3608,94043.0,94028.0,0.10908]
[1732134112436,0.46216482,94035.0,94034.0,0.053127]
[1732134114241,0.46216482,94035.0,94031.0,0.062128]
[1732134114548,0.053128,94032.0,94031.0,0.009]
[1732134114746,0.053134,94022.0,94020.0,0.053134]
[1732134114935,0.83639882,94021.0,94020.0,0.053134]
[1732134115542,0.83639882,94021.0,94019.0,0.053134]
[1732134115737,0.10136482,94020.0,94019.0,0.053134]
[1732134116842,0.15449882,94020.0,94019.0,0.053134]
[1732134117350,0.053138,94015.0,94014.0,0.053138]
[1732134117537,0.053138,94015.0,94012.0,0.00159538]
[1732134117538,0.053138,94013.0,94012.0,0.00159538]
[1732134117738,0.413938,94013.0,94012.0,0.00159538]
[1732134119644,0.413938,94013.0,94012.0,0.05473438]
[1732134119842,0.3608,94013.0,94012.0,0.053139]
[1732134120251,0.3211,94015.0,94014.0,0.053138]
[1732134120750,0.3608,94021.0,94014.0,0.053138]
[1732134121049,0.3608,94021.0,94020.0,0.053134]
[1732134121249,0.3608,94033.0,94032.0,0.053128]
[1732134121848,0.67984,94033.0,94007.0,0.522822]
[1732134122042,0.10136482,94016.0,94015.0,0.053137]
[1732134122457,0.0049,94032.0,94023.0,0.053133]
[1732134122749,0.0049,94032.0,94011.0,0.15450382]
[1732134122750,0.3608,94033.0,94011.0,0.10136482]
[1732134122937,0.3608,94033.0,94032.0,0.053128]
[1732134123750,0.413927,94033.0,94032.0,0.053128]
[1732134124838,0.774727,94033.0,94032.0,0.053128]
[1732134128643,0.7216,94033.0,94032.0,0.053128]
[1732134128866,0.3608,94033.0,94032.0,0.053128]
[1732134131348,0.51529182,94033.0,94032.0,0.053128]
[1732134131742,0.46216482,94033.0,94032.0,0.053128]
[1732134131947,0.3608,94033.0,94032.0,0.053128]
[1732134132953,0.00052909,94034.0,94033.0,0.053127]
[1732134133152,0.00052909,94034.0,94033.0,0.099827]
[1732134134863,0.00043,94034.0,94033.0,0.418867]
[1732134135062,0.00159575,94051.0,94048.0,0.053119]
[1732134135377,0.00159575,94051.0,94050.0,0.053118]
[1732134138165,0.15607757,94051.0,94050.0,0.053118]
[1732134138969,0.053122,94043.0,94035.0,0.10888]
[1732134139182,0.413922,94043.0,94042.0,0.053121]
[1732134140169,0.3608,94043.0,94022.0,0.0467]
[1732134140462,0.3608,94026.0,94025.0,0.05472734]
[1732134142664,0.413931,94026.0,94025.0,0.00159534]
[1732134142972,0.413931,94026.0,94008.0,0.053141]
[1732134142973,0.053142,94009.0,94008.0,0.053141]
[1732134143153,0.51530682,94009.0,94008.0,0.053141]
[1732134143667,0.46216482,94009.0,94002.0,0.053144]
[1732134143855,0.15450882,94003.0,94000.0,0.1]
[1732134145666,0.0471,94002.0,94000.0,0.1]
[1732134146272,0.053145,94001.0,94000.0,0.00598869]
[1732134146469,0.733105,94001.0,94000.0,0.00598869]
[1732134146681,0.733105,94001.0,93985.0,0.053154]
[1732134146682,0.05315,93993.0,93985.0,0.053154]
[1732134146862,0.05315,93993.0,93968.0,0.02125747]
[1732134146863,0.05315,93992.0,93968.0,0.02125747]
[1732134147056,0.25589264,93969.0,93968.0,0.02125747]
[1732134147259,0.10136482,93969.0,93962.0,0.053167]
[1732134147473,0.15453182,93963.0,93962.0,0.053167]
[1732134147670,0.053169,93959.0,93957.0,0.00159648]
[1732134147862,0.3608,93958.0,93957.0,0.00159648]
[1732134148960,0.3608,93958.0,93957.0,0.05476648]
[1732134149161,0.3608,93958.0,93957.0,0.1561313]
[1732134149361,0.3608,93958.0,93957.0,0.2650113]
[1732134149574,0.3608,93968.0,93967.0,0.053164]
[1732134149872,0.001,93969.0,93967.0,0.053164]
[1732134150178,0.3608,93978.0,93977.0,0.053159]
[1732134150467,0.3608,93978.0,93977.0,0.15452382]
[1732134151073,0.3608,93989.0,93977.0,0.20062382]
[1732134151383,0.3608,93989.0,93988.0,0.053153]
[1732134151676,0.46216482,93989.0,93988.0,0.053153]
[1732134151860,0.3608,93989.0,93988.0,0.053153]
[1732134153068,0.0015965,93994.0,93988.0,0.053153]
[1732134153280,0.0015965,93994.0,93990.0,0.053151]
[1732134158980,0.0015965,93994.0,93990.0,0.372351]
[1732134159682,0.3608,93998.0,93990.0,0.372351]
[1732134160173,0.3608,93998.0,93990.0,0.053151]
[1732134161964,0.3608,93998.0,93990.0,0.161831]
[1732134162171,0.3608,93998.0,93990.0,0.053151]
[1732134162379,0.0049,94005.0,94004.0,0.053144]
[1732134162577,0.3608,94013.0,94012.0,0.053139]
[1732134165879,0.3608,94013.0,94012.0,1.553139]
[1732134166070,0.3608,94018.0,94017.0,0.053136]
[1732134166378,0.3608,94018.0,94017.0,0.161776]
[1732134166580,0.3608,94026.0,94017.0,0.161776]
[1732134166882,0.3608,94026.0,94021.0,0.053134]
[1732134168080,0.053135,94020.0,94017.0,0.053136]
[1732134168275,0.053135,94020.0,94012.0,1.5]
[1732134168276,0.15631619,94022.0,94012.0,1.50056]
[1732134168470,0.0395,94021.0,94020.0,0.053134]
[1732134169187,0.132334,94021.0,94020.0,0.053134]
[1732134169666,0.0792,94021.0,94020.0,0.053134]
[1732134170270,0.00159596,94022.0,94021.0,0.053134]
[1732134170473,0.00159596,94022.0,94021.0,0.31649423]
[1732134171075,0.3657,94034.0,94033.0,0.053127]
[1732134171277,0.3608,94045.0,94033.0,0.053127]
[1732134171278,0.3608,94045.0,94044.0,0.053121]
[1732134171469,0.3608,94045.0,94036.0,0.10864]
[1732134171785,0.3608,94045.0,94044.0,0.053121]
[1732134179787,0.0386,94053.0,94052.0,0.053116]
[1732134180582,0.0783,94062.0,94061.0,0.053111]
[1732134181990,0.131411,94062.0,94061.0,0.053111]
[1732134183178,0.0783,94062.0,94061.0,0.053111]
[1732134183391,0.131411,94062.0,94061.0,0.053111]
[1732134184594,0.131411,94062.0,94056.0,0.053112]
[1732134184595,0.053115,94057.0,94056.0,0.053112]
[1732134185288,0.492211,94062.0,94061.0,0.053111]
[1732134185694,0.4391,94062.0,94061.0,0.053111]
[1732134185990,0.492211,94062.0,94061.0,0.053111]
[1732134186195,0.053115,94057.0,94056.0,0.053114]
[1732134186397,0.053119,94049.0,94048.0,0.053117]
[1732134186585,0.4391,94062.0,94038.0,0.10836]
[1732134186586,0.3608,94050.0,94038.0,0.10836]
[1732134186783,0.3608,94050.0,94049.0,0.053118]
[1732134187495,0.40158001,94062.0,94061.0,0.053111]
[1732134187696,0.3608,94062.0,94061.0,0.053111]
[1732134187887,0.3608,94062.0,94053.0,0.10836]
[1732134187888,0.36160001,94071.0,94066.0,0.053108]
[1732134188089,0.053107,94069.0,94061.0,0.053111]
[1732134188397,0.053117,94052.0,94051.0,0.053117]
[1732134188603,0.3608,94052.0,94042.0,0.10995492]
[1732134188788,0.05312,94047.0,94046.0,0.053118]
[1732134188992,0.053118,94049.0,94048.0,0.053118]
[1732134189484,0.0741,94051.0,94050.0,0.053118]
[1732134189994,0.127217,94051.0,94050.0,0.053118]
[1732134190391,0.162517,94051.0,94050.0,0.053118]
[1732134192402,0.162517,94051.0,94042.0,0.10836]
[1732134192403,0.053121,94046.0,94045.0,0.05312]
[1732134195697,0.162519,94051.0,94050.0,0.053118]
[1732134196194,0.053121,94046.0,94045.0,0.05312]
[1732134200608,0.1094,94051.0,94046.0,0.05312]
[1732134200609,0.15797061,94047.0,94046.0,0.05312]
[1732134201604,0.15797061,94047.0,94038.0,0.053124]
[1732134201605,0.15907227,94047.0,94038.0,0.053124]
[1732134201903,0.3608,94043.0,94042.0,0.053122]
[1732134202400,0.088417,94051.0,94042.0,0.053122]
[1732134202601,0.15907291,94047.0,94042.0,0.053122]
[1732134202901,0.15907291,94047.0,94046.0,0.05312]
[1732134203598,0.21219191,94047.0,94046.0,0.05312]
[1732134203788,0.053119,94047.0,94046.0,0.05312]
[1732134204100,0.21219872,94047.0,94046.0,0.05312]
[1732134204401,0.05163288,94047.0,94040.0,0.053123]
[1732134204608,0.053128,94036.0,94035.0,0.053126]
[1732134204794,0.15436108,94032.0,94031.0,0.00159505]
[1732134205106,0.20600132,94032.0,94031.0,0.00159505]
[1732134205699,0.31340766,94032.0,94031.0,0.05472305]
[1732134205905,0.3608,94036.0,94032.0,0.053128]
[1732134205906,0.15904658,94033.0,94032.0,0.053128]
[1732134206200,0.15904658,94035.0,94034.0,0.053127]
[1732134206398,0.3608,94036.0,94035.0,0.053126]
[1732134206899,0.15904658,94043.0,94035.0,0.053126]
[1732134207104,0.053122,94043.0,94042.0,0.053121]
[1732134208904,0.3608,94044.0,94032.0,0.14546]
[1732134209101,0.3608,94044.0,94043.0,0.053121]
[1732134209399,0.00088001,94053.0,94052.0,0.053116]
[1732134209601,0.36239537,94055.0,94054.0,0.053115]
[1732134210101,0.05471037,94055.0,94054.0,0.053115]
[1732134210298,0.41551037,94055.0,94046.0,0.10836]
[1732134210500,0.05312,94045.0,94044.0,0.05368]
[1732134210713,0.053128,94033.0,94031.0,0.00159505]
[1732134211005,0.053128,94032.0,94031.0,0.05472305]
[1732134213708,0.053128,94032.0,94031.0,0.053128]
[1732134214724,0.0341,94044.0,94033.0,0.053126]
[1732134214909,0.0341,94044.0,94043.0,0.053121]
[1732134214910,0.053121,94044.0,94043.0,0.053121]
[1732134216009,0.053121,94044.0,94032.0,0.30544937]
[1732134216010,0.053125,94040.0,94039.0,0.053122]
[1732134218105,0.053121,94045.0,94044.0,0.05312]
[1732134218305,0.0367,94046.0,94045.0,0.05312]
[1732134218608,0.0367,94046.0,94042.0,0.10123308]
[1732134218609,0.3608,94047.0,94046.0,0.05312]
[1732134222719,0.15904658,94063.0,94057.0,0.053114]
[1732134222902,0.15904658,94063.0,94050.0,0.053117]
[1732134222903,0.3608,94065.0,94064.0,0.05311]
[1732134226518,0.3608,94065.0,94064.0,0.16115]
[1732134227119,0.3608,94080.0,94079.0,0.053101]
[1732134229119,0.0365,94088.0,94079.0,0.053101]
[1732134229321,0.0365,94088.0,94087.0,0.15433008]
[1732134229818,0.36239485,94091.0,94090.0,0.053095]
[1732134230408,0.053096,94088.0,94084.0,0.053098]
[1732134230612,0.36239485,94091.0,94088.0,0.053096]
[1732134231004,0.36239485,94091.0,94089.0,0.053095]
[1732134239927,0.41548985,94091.0,94089.0,0.053095]
[1732134240222,0.36239485,94091.0,94075.0,0.02123739]
[1732134240429,0.36239485,94091.0,94064.0,0.43514739]
[1732134240430,0.053099,94084.0,94082.0,0.053099]
[1732134240616,0.3608,94083.0,94082.0,0.053099]
[1732134241513,0.00159485,94091.0,94082.0,0.053099]
[1732134241514,0.00159485,94091.0,94082.0,0.413899]
[1732134241714,0.00159485,94091.0,94090.0,0.51512808]
[1732134241914,0.00159485,94091.0,94090.0,0.62284808]
[1732134243220,0.1,94100.0,94090.0,0.56975308]
[1732134243419,0.1,94100.0,94093.0,0.053093]
[1732134243732,0.053094,94092.0,94090.0,0.3608]
[1732134244025,0.1,94100.0,94091.0,0.10772]
[1732134244330,0.1,94100.0,94099.0,0.05309]
[1732134246234,0.053093,94094.0,94093.0,0.053093]
[1732134246534,0.413893,94094.0,94093.0,0.053093]
[1732134247534,0.3608,94094.0,94093.0,0.053093]
[1732134250736,0.3608,94094.0,94093.0,0.160813]
[1732134250935,0.413893,94094.0,94093.0,0.160813]
[1732134251132,0.413893,94094.0,94093.0,0.13288758]
[1732134251644,0.413893,94094.0,94093.0,0.18598058]
[1732134251827,0.413893,94094.0,94093.0,0.02516758]
[1732134252030,0.413893,94094.0,94093.0,0.10772]
[1732134252229,0.413893,94094.0,94093.0,0.160813]
[1732134252530,0.413893,94094.0,94093.0,0.053093]
[1732134253529,0.413893,94094.0,94091.0,0.82695608]
[1732134253530,0.053094,94092.0,94091.0,0.82695608]
[1732134253728,0.053094,94092.0,94091.0,0.64072565]
[1732134253936,0.053105,94073.0,94072.0,0.053105]
[1732134254148,0.053106,94070.0,94069.0,9.694e-05]
[1732134254333,0.053106,94070.0,94069.0,0.05320394]
[1732134254533,0.053106,94070.0,94069.0,9.694e-05]
[1732134254929,0.053106,94070.0,94069.0,0.05320394]
[1732134255635,0.1059,94072.0,94071.0,0.053106]
[1732134255942,0.1059,94072.0,94069.0,9.694e-05]
[1732134256143,0.053106,94070.0,94069.0,9.694e-05]
[1732134256643,0.053115,94055.0,94054.0,0.02594082]
[1732134256946,0.053115,94055.0,94042.0,0.25214172]
[1732134256947,0.053121,94043.0,94042.0,0.160841]
[1732134257148,0.3608,94043.0,94042.0,0.053121]
[1732134257638,0.3608,94043.0,94042.0,0.160841]
[1732134257639,0.36089694,94043.0,94042.0,0.160841]